bitfinex-derivatives/quotes_ETHF0:USTF0_20250621
["timestamp","ask_amount","ask_price","bid_price","bid_amount"]
[1750496002145,28.93786,2429.7,2429.6,1.3787]
[1750496005146,28.93186,2429.7,2429.6,3.86147157]
[1750496005645,28.93186,2429.7,2429.6,3.03838157]
[1750496007148,28.93186,2429.7,2429.6,1.3787]
[1750496007346,28.93186,2429.7,2429.6,2.20179]
[1750496008951,28.93186,2429.7,2429.6,1.3787]
[1750496009150,28.93186,2429.7,2429.6,2.20179]
[1750496009452,28.93186,2429.7,2429.6,1.3787]
[1750496010154,28.93186,2429.7,2429.6,2.20179]
[1750496011753,28.93186,2429.7,2429.6,1.3787]
[1750496012653,28.93186,2429.7,2429.6,2.20179]
[1750496013153,28.93186,2429.7,2429.6,1.3787]
[1750496013557,28.93186,2429.7,2429.6,2.20179]
[1750496014351,28.93186,2429.7,2429.6,1.3787]
[1750496014752,31.42816314,2429.7,2429.2,0.82321]
[1750496015045,31.42816314,2429.7,2429.2,1.47801]
[1750496015046,4.03101,2429.3,2429.2,1.47801]
[1750496015245,28.92301,2429.3,2429.2,1.47801]
[1750496016055,28.0998,2429.3,2429.2,1.47801]
[1750496017047,28.0998,2429.3,2429.2,3.13769157]
[1750496021248,28.92299,2429.3,2429.2,3.13769157]
[1750496022959,28.0998,2429.3,2429.2,3.13769157]
[1750496023261,28.92299,2429.3,2429.2,0.6548]
[1750496024262,28.92299,2429.3,2429.2,1.47803]
[1750496025559,28.0998,2429.3,2429.2,1.47803]
[1750496030166,28.0998,2429.3,2429.2,1.54650599]
[1750496031170,28.7486,2429.3,2429.2,1.54650599]
[1750496031470,28.7486,2429.3,2429.2,1.47803]
[1750496031671,28.0998,2429.3,2429.2,3.13771157]
[1750496032066,28.0998,2429.3,2429.2,3.20618756]
[1750496033069,28.0998,2429.3,2429.2,3.13771157]
[1750496039276,3.2078,2429.3,2429.2,3.13771157]
[1750496044284,24.871,2429.4,2429.3,0.82319]
[1750496044475,29.24030009,2429.4,2429.3,0.82319]
[1750496051084,30.06346009,2429.4,2429.3,0.82319]
[1750496051284,30.54720009,2429.4,2429.3,0.82319]
[1750496053583,29.24030009,2429.4,2429.3,0.82319]
[1750496062193,30.06346009,2429.4,2429.3,0.82319]
[1750496062388,31.36806009,2429.4,2429.3,0.82319]
[1750496062591,30.54490009,2429.4,2429.3,0.82319]
[1750496062889,30.5444033,2429.4,2429.3,0.82319]
[1750496064997,31.3675633,2429.4,2429.3,0.82319]
[1750496065799,29.2398033,2429.4,2429.3,0.82319]
[1750496072909,30.0629633,2429.4,2429.3,0.82319]
[1750496073207,29.2398033,2429.4,2429.3,0.82319]
[1750496075215,30.0629633,2429.4,2429.3,0.82319]
[1750496076214,29.2398033,2429.4,2429.3,0.82319]
[1750496076812,30.0629633,2429.4,2429.3,0.82319]
[1750496078413,29.2398033,2429.4,2429.3,0.82319]
[1750496090131,30.6234033,2429.4,2429.3,0.82319]
[1750496090835,29.2398033,2429.4,2429.3,0.82319]
[1750496091729,28.0788,2429.4,2429.3,0.82319]
[1750496092330,3.2078,2429.4,2429.3,0.82319]
[1750496096638,3.2078,2430.0,2429.9,0.82299]
[1750496096834,4.03601153,2430.0,2429.9,2.48267157]
[1750496097040,28.87401153,2430.0,2429.9,2.48267157]
[1750496097231,2.87841381,2430.0,2429.9,2.48267157]
[1750496098128,2.87841381,2430.0,2429.9,0.82299]
[1750496098333,4.24931381,2430.0,2429.9,0.82299]
[1750496099239,5.07227381,2430.0,2429.9,0.82299]
[1750496099428,4.24931381,2430.0,2429.9,0.82299]
[1750496102633,29.08531381,2430.0,2429.9,0.82299]
[1750496102836,27.71441381,2430.0,2429.9,2.48267157]
[1750496103042,2.87841381,2430.0,2429.9,2.48267157]
[1750496104239,2.87841381,2430.0,2429.9,3.14877157]
[1750496104739,2.87841381,2430.0,2429.9,9.47477157]
[1750496105043,2.87841381,2430.0,2429.9,10.18576334]
[1750496105941,2.87841381,2430.0,2429.9,11.49046334]
[1750496106439,3.2078,2430.3,2430.1,2.0573]
[1750496106641,3.2078,2430.3,2430.2,0.82289]
[1750496106844,3.2078,2430.3,2430.2,1.47359]
[1750496111844,3.2078,2430.3,2430.2,7.79959]
[1750496113343,3.2078,2430.3,2430.2,9.19889]
[1750496114248,3.2078,2430.6,2430.3,0.82285]
[1750496114543,3.2078,2430.6,2430.5,0.82279]
[1750496118454,3.2078,2430.6,2430.5,1.24896236]
[1750496120550,3.2078,2430.6,2430.5,0.82279]
[1750496125243,4.5345,2430.6,2430.5,0.82279]
[1750496129852,3.2078,2430.6,2430.5,2.4819083]
[1750496133759,3.2078,2430.6,2430.5,0.82279]
[1750496149073,3.2078,2430.9,2430.8,0.82268]
[1750496149370,4.36181917,2430.9,2430.8,0.82268]
[1750496149572,3.2078,2430.9,2430.8,0.82268]
[1750496150069,4.36140457,2430.9,2430.8,0.82268]
[1750496150273,3.2078,2430.9,2430.8,0.82268]
[1750496156880,4.5164,2430.9,2430.8,0.82268]
[1750496158778,1.3086,2430.9,2430.8,0.82268]
[1750496161688,1.3086,2430.9,2430.6,1.3502]
[1750496161894,3.2078,2430.7,2430.6,0.82275]
[1750496166391,3.2078,2430.7,2430.6,2.4818683]
[1750496167097,3.2078,2430.7,2430.6,2.55034429]
[1750496169199,3.2078,2430.7,2430.6,2.4818683]
[1750496170194,3.2078,2430.7,2430.6,2.55034429]
[1750496172201,1.967,2430.9,2430.8,0.82268]
[1750496178299,3.1156935,2430.9,2430.8,0.82268]
[1750496178492,1.967,2430.9,2430.8,0.82268]
[1750496180304,3.11567847,2430.9,2430.8,0.89115599]
[1750496181006,3.93832847,2430.9,2430.8,0.89115599]
[1750496181205,3.11567847,2430.9,2430.8,0.89115599]
[1750496181508,3.93832847,2430.9,2430.8,0.89115599]
[1750496182301,3.93841544,2430.9,2430.8,0.89115599]
[1750496183004,7.14621544,2430.9,2430.8,0.89115599]
[1750496183799,6.32356544,2430.9,2430.8,0.89115599]
[1750496183998,5.1748,2430.9,2430.8,0.89115599]
[1750496184195,7.14621985,2430.9,2430.8,0.89115599]
[1750496184907,6.32356985,2430.9,2430.8,0.89115599]
[1750496186407,7.14621985,2430.9,2430.8,0.89115599]
[1750496187708,6.32356985,2430.9,2430.8,0.89115599]
[1750496187907,5.1748,2430.9,2430.8,0.89115599]
[1750496188110,6.32352107,2430.9,2430.8,0.89115599]
[1750496188408,5.1748,2430.9,2430.8,0.89115599]
[1750496189009,5.1748,2430.9,2430.8,1.04300469]
[1750496189403,6.3229206,2430.9,2430.8,1.04300469]
[1750496189708,5.1748,2430.9,2430.8,1.04300469]
[1750496190310,6.32292549,2430.9,2430.8,1.04300469]
[1750496190608,5.1748,2430.9,2430.8,1.04300469]
[1750496191104,6.32292377,2430.9,2430.8,1.04300469]
[1750496191310,5.1748,2430.9,2430.8,1.04300469]
[1750496192809,6.32294425,2430.9,2430.8,1.04300469]
[1750496193110,3.2078,2431.2,2431.1,0.82258]
[1750496193312,3.8899,2431.2,2431.1,0.82258]
[1750496193699,6.4111108,2431.2,2431.1,0.82258]
[1750496193903,5.2635,2431.2,2431.1,0.82258]
[1750496194105,5.2635,2431.2,2431.1,0.9744287]
[1750496195512,3.2078,2431.2,2431.1,1.6813287]
[1750496195710,1.14483842,2431.2,2431.1,1.6813287]
[1750496196099,1.14483842,2431.2,2431.1,3.0752287]
[1750496203320,4.03025,2431.5,2431.4,0.82248]
[1750496203521,5.17296634,2431.5,2431.4,0.82248]
[1750496204321,5.17296634,2431.5,2431.4,0.9743287]
[1750496205619,4.03025,2431.5,2431.4,0.9743287]
[1750496206419,0.82255,2431.2,2431.1,0.7069]
[1750496206714,2.0608,2431.4,2431.0,1.6591183]
[1750496206919,0.82253,2431.3,2431.2,0.82253]
[1750496207128,2.4816483,2431.3,2431.2,0.82253]
[1750496207427,0.82253,2431.3,2431.2,0.82253]
[1750496207928,4.5424283,2431.4,2431.3,0.82252]
[1750496208318,5.68473307,2431.4,2431.3,0.82252]
[1750496208622,4.5424283,2431.4,2431.3,0.82252]
[1750496209519,2.4816283,2431.4,2431.3,0.82252]
[1750496210826,0.82251,2431.4,2431.3,0.89099599]
[1750496211125,4.03027,2431.5,2431.4,0.82248]
[1750496211324,5.17277073,2431.5,2431.4,0.82248]
[1750496213325,0.82248,2431.4,2431.3,0.89096599]
[1750496217030,3.2078,2431.5,2431.4,0.82248]
[1750496220726,9.5248,2431.8,2431.4,0.82248]
[1750496220934,9.5248,2431.8,2431.7,0.82238]
[1750496221133,35.47088168,2431.8,2431.7,0.82238]
[1750496221436,36.29324168,2431.8,2431.7,0.82238]
[1750496221636,37.57224168,2431.8,2431.7,0.82238]
[1750496225038,6.45024168,2431.8,2431.7,0.82238]
[1750496225232,31.25424168,2431.8,2431.7,0.82238]
[1750496226036,6.45024168,2431.8,2431.7,0.89085599]
[1750496226242,31.25424168,2431.8,2431.7,0.89085599]
[1750496227242,33.62302422,2431.8,2431.7,0.89085599]
[1750496228042,30.43088168,2431.8,2431.7,0.89085599]
[1750496228234,29.2898,2431.8,2431.7,0.89085599]
[1750496228431,28.0108,2431.8,2431.7,0.89085599]
[1750496230334,28.0098,2431.8,2431.7,0.89085599]
[1750496230735,3.2078,2431.8,2431.7,0.89085599]
[1750496230935,28.0098,2431.8,2431.7,0.89085599]
[1750496231540,3.2078,2431.8,2431.7,0.89085599]
[1750496231930,28.0098,2431.8,2431.7,0.89085599]
[1750496232531,3.2078,2431.8,2431.7,1.30706651]
[1750496232842,3.2078,2431.8,2431.7,2.96436796]
[1750496233338,3.2078,2431.8,2431.7,1.30706651]
[1750496234337,2.007,2432.0,2431.9,0.82231]
[1750496234639,26.808,2432.0,2431.9,0.82231]
[1750496235936,27.63028,2432.0,2431.9,0.82231]
[1750496240137,2.82928,2432.0,2431.9,0.82231]
[1750496240442,27.62828,2432.0,2431.9,0.82231]
[1750496241345,27.62828,2432.0,2431.9,0.89078599]
[1750496243637,4.71217,2432.1,2432.0,0.82228]
[1750496243942,38.61989199,2432.1,2432.0,0.82228]
[1750496244147,0.82228,2432.0,2431.9,0.89076599]
[1750496244341,1.96170054,2432.0,2431.9,0.89076599]
[1750496244741,25.62028,2432.0,2431.9,0.89076599]
[1750496245239,3.2078,2432.4,2431.9,5.06847599]
[1750496245435,6.32270464,2434.1,2432.7,3.2078]
[1750496245635,6.32270464,2434.1,2432.1,4.127]
[1750496245636,3.2078,2434.8,2434.7,0.82137]
[1750496245952,8.20656397,2435.6,2434.8,0.82133]
[1750496245953,3.30804235,2434.9,2434.8,0.82133]
[1750496246138,0.0125513,2434.9,2434.8,2.47863145]
[1750496246439,0.0125513,2434.9,2434.8,2.86368842]
[1750496246647,0.0125513,2434.9,2434.8,5.24738942]
[1750496246841,0.0125513,2434.9,2434.8,4.73519451]
[1750496247047,1.343,2435.4,2434.9,0.8213]
[1750496247361,5.56902621,2435.6,2434.9,1.78608612]
[1750496247362,25.978,2435.5,2434.9,1.78608612]
[1750496247540,27.321,2435.5,2434.9,1.78608612]
[1750496247739,27.321,2435.5,2434.9,2.37375812]
[1750496248042,26.018,2435.4,2434.9,2.37566077]
[1750496248238,12.31202621,2435.6,2434.9,2.34741989]
[1750496248239,5.56902621,2435.6,2434.9,2.34741989]
[1750496248441,27.3602,2435.5,2434.9,2.34741989]
[1750496248734,26.26639945,2435.0,2434.9,1.15670903]
[1750496248938,28.62762566,2435.0,2434.9,1.15670903]
[1750496249139,54.70562566,2435.0,2434.9,1.15670903]
[1750496249445,53.63459945,2435.0,2434.9,1.15670903]
[1750496249739,53.63459945,2435.0,2434.9,1.14165186]
[1750496249941,53.63459945,2435.0,2434.9,1.16361828]
[1750496250146,53.63459945,2435.0,2434.9,0.16361828]
[1750496250656,9.87762781,2434.6,2434.3,3.2078]
[1750496250948,26.061,2434.6,2434.5,0.82142]
[1750496251149,9.87762781,2434.4,2434.0,5.56902621]
[1750496251450,3.29549105,2434.5,2434.3,0.82148]
[1750496251641,6.58213676,2434.2,2434.1,0.82157]
[1750496252040,26.061,2434.6,2434.4,0.82146]
[1750496252236,3.29549105,2434.5,2434.4,0.82146]
[1750496252444,35.94362781,2434.5,2434.4,0.82146]
[1750496252649,21.99287575,2434.5,2434.4,3.18268621]
[1750496252950,0.2443037,2435.0,2434.9,0.8213]
[1750496253249,18.9416884,2435.0,2434.9,0.8213]
[1750496253452,22.23717945,2435.0,2434.9,0.8213]
[1750496254338,10.12193151,2435.0,2434.9,0.8213]
[1750496254540,22.23717945,2435.0,2434.9,0.8213]
[1750496256547,48.26817945,2435.0,2434.9,0.88977599]
[1750496257047,29.56679475,2435.0,2434.9,3.2510022]
[1750496257247,26.2713037,2435.0,2434.9,3.2510022]
[1750496257440,0.2443037,2435.0,2434.9,3.2510022]
[1750496258848,3.7e-06,2435.0,2434.9,6.4588022]
[1750496259046,3.7e-06,2435.0,2434.9,3.2078]
[1750496259251,3.7e-06,2435.0,2434.9,6.39032621]
[1750496259548,3.7e-06,2435.0,2434.9,6.4588022]
[1750496262244,3.7e-06,2435.0,2434.9,13.5098022]
[1750496262646,3.7e-06,2435.0,2434.9,14.10285986]
[1750496264255,3.7e-06,2435.0,2434.9,14.10294357]
[1750496265051,3.7e-06,2435.0,2434.9,14.1028642]
[1750496265252,3.7e-06,2435.0,2434.9,13.1028642]
[1750496265454,3.7e-06,2435.0,2434.9,13.10286392]
[1750496265653,3.7e-06,2435.0,2434.9,18.10286392]
[1750496265849,3.7e-06,2435.0,2434.9,20.46409013]
[1750496266256,3.7e-06,2435.0,2434.9,18.10309355]
[1750496266662,3.7e-06,2435.0,2434.9,6.05209355]
[1750496266862,3.7e-06,2435.0,2434.9,13.10209355]
[1750496267165,3.7e-06,2435.0,2434.9,13.10213643]
[1750496267977,3.7e-06,2435.0,2434.9,13.1028341]
[1750496268157,3.7e-06,2435.0,2434.9,14.5100341]
[1750496268465,3.7e-06,2435.0,2434.9,13.10282207]
[1750496268661,3.7e-06,2435.0,2434.9,13.03434608]
[1750496269463,3.7e-06,2435.0,2434.9,14.31634608]
[1750496269666,3.7e-06,2435.0,2434.9,14.38482207]
[1750496269859,3.7e-06,2435.0,2434.9,14.75281056]
[1750496270264,3.7e-06,2435.0,2434.9,14.15879069]
[1750496270965,3.7e-06,2435.0,2434.9,5.82918001]
[1750496271267,3.7e-06,2435.0,2434.9,13.44657899]
[1750496271463,3.7e-06,2435.0,2434.9,13.44678402]
[1750496271664,3.7e-06,2435.0,2434.9,14.65003558]
[1750496271863,0.6918,2435.3,2435.2,0.8212]
[1750496272058,14.12704794,2435.3,2435.2,1.76018182]
[1750496272265,24.00467575,2435.3,2435.2,0.8212]
[1750496272464,24.00467575,2435.3,2435.2,1.80435668]
[1750496273171,24.00467575,2435.3,2435.2,1.42094185]
[1750496273368,24.00467575,2435.3,2435.2,0.8212]
[1750496273768,24.00467575,2435.3,2435.2,2.03291638]
[1750496274863,24.00467575,2435.3,2435.2,3.26892644]
[1750496275775,24.00467575,2435.3,2435.2,0.8212]
[1750496279773,22.68467575,2435.3,2435.2,0.8212]
[1750496280273,10.56942781,2435.3,2435.2,0.8212]
[1750496280677,3.29549105,2435.3,2435.2,0.8212]
[1750496281774,3.29549105,2435.3,2435.2,4.029]
[1750496281972,0.7047,2435.4,2435.3,0.82117]
[1750496282275,12.81994794,2435.4,2435.3,3.18239621]
[1750496282468,22.69757575,2435.4,2435.3,3.18239621]
[1750496283367,4.00019105,2435.4,2435.3,3.18239621]
[1750496283762,0.7047,2435.4,2435.3,3.18239621]
[1750496283966,4.00019105,2435.4,2435.3,3.18239621]
[1750496284167,0.6682,2435.5,2435.4,0.82113]
[1750496285567,3.96369105,2435.5,2435.4,0.82113]
[1750496288573,10.54582781,2435.5,2435.4,0.82113]
[1750496289265,22.66107575,2435.5,2435.4,0.82113]
[1750496295478,22.66107575,2435.5,2435.4,3.18235621]
[1750496296176,0.6682,2435.5,2435.4,3.18235621]
[1750496299372,3.2078,2436.9,2435.4,9.72245242]
[1750496299573,3.2078,2437.2,2437.1,0.82056]
[1750496299871,3.2078,2437.2,2437.1,5.62451315]
[1750496300076,3.2078,2437.5,2437.3,0.82049]
[1750496300281,6.58213676,2437.4,2437.2,2.43620935]
[1750496300582,3.29549105,2437.4,2437.3,5.61792556]
[1750496300784,3.2078,2437.8,2437.4,0.82046]
[1750496300981,6.58213676,2437.7,2437.6,1.62352524]
[1750496301178,3.2078,2438.6,2437.6,4.72245242]
[1750496301487,0.2443037,2439.0,2438.5,7.19255145]
[1750496301781,0.1717,2439.5,2439.1,0.81987]
[1750496301989,0.81981,2439.4,2439.2,2.4354008]
[1750496302186,0.06847599,2439.4,2438.9,2.36122621]
[1750496302386,12.18372393,2439.4,2438.9,5.56902621]
[1750496302589,12.18372393,2439.4,2438.8,6.77720841]
[1750496302877,0.81995,2438.9,2438.8,3.2078]
[1750496303077,21.39147415,2438.9,2438.5,3.2078]
[1750496303276,12.11524794,2438.9,2438.5,3.2078]
[1750496303581,14.47647415,2438.9,2438.2,6.77720841]
[1750496303776,0.82004,2438.7,2438.2,5.56902621]
[1750496304085,7.234,2438.8,2438.2,3.2078]
[1750496304086,0.82001,2438.8,2438.2,3.2078]
[1750496304286,0.82001,2438.8,2438.2,5.56902621]
[1750496304287,7.231,2438.7,2438.2,5.56902621]
[1750496304581,7.231,2438.7,2438.3,2.36122621]
[1750496304789,0.82007,2438.6,2438.2,3.2078]
[1750496304979,22.55404794,2438.7,2438.1,3.2078]
[1750496305184,7.231,2438.6,2438.1,3.2078]
[1750496305582,0.82018,2438.3,2438.1,3.2078]
[1750496305983,0.82019,2438.2,2438.1,3.2078]
[1750496306287,7.231,2438.6,2438.1,3.2078]
[1750496306482,0.82019,2438.2,2438.1,3.2078]
[1750496306984,0.82014,2438.4,2438.1,3.2078]
[1750496307187,7.23,2438.4,2438.1,3.2078]
[1750496307880,7.23,2438.4,2438.1,4.02802]
[1750496308081,7.23,2438.4,2438.1,3.2078]
[1750496308389,8.05014,2438.4,2438.1,3.2078]
[1750496309088,8.05013,2438.4,2438.1,3.2078]
[1750496309285,0.82017,2438.3,2438.1,3.2078]
[1750496309480,8.05014,2438.4,2438.1,3.2078]
[1750496309789,0.82016,2438.3,2438.1,3.2078]
[1750496310088,7.23,2438.4,2438.1,3.2078]
[1750496310286,8.05014,2438.4,2438.1,4.02801]
[1750496310476,0.6576,2438.7,2438.1,3.2078]
[1750496310682,0.82013,2438.4,2438.1,4.02801]
[1750496311186,0.82015,2438.4,2438.1,4.02801]
[1750496311488,0.6576,2438.7,2438.1,4.02801]
[1750496311683,7.229,2438.6,2438.4,4.02789]
[1750496311889,7.229,2438.6,2438.4,4.0279]
[1750496312195,7.229,2438.6,2438.5,0.82009]
[1750496312487,0.6576,2438.7,2438.5,0.82009]
[1750496312792,7.229,2438.9,2438.8,0.81999]
[1750496313089,8.04893,2439.0,2438.8,4.02778]
[1750496313586,48.0999,2439.1,2438.9,0.81995]
[1750496313782,7.228,2439.0,2438.9,0.81995]
[1750496314193,47.28,2439.1,2438.8,3.2078]
[1750496314194,54.508,2439.1,2438.8,3.2078]
[1750496314585,54.508,2439.1,2439.0,0.81992]
[1750496315478,8.04788,2439.2,2439.0,0.81992]
[1750496315795,0.81986,2439.2,2439.0,0.8199]
[1750496315984,7.228,2439.2,2439.1,4.02766]
[1750496316285,0.6394,2439.3,2439.1,4.02766]
[1750496316491,7.228,2439.2,2439.1,4.02766]
[1750496316676,2.0403,2439.3,2439.1,3.2078]
[1750496316882,8.04773,2439.6,2439.4,0.81979]
[1750496317093,8.04773,2439.6,2439.4,4.02759]
[1750496317290,1.4009,2439.7,2439.4,4.02759]
[1750496317494,8.6289,2439.7,2439.4,4.02759]
[1750496317889,2.22059,2439.7,2439.4,4.02759]
[1750496318090,55.30867,2439.8,2439.4,4.02759]
[1750496318287,3.2078,2441.4,2439.4,8.2078]
[1750496318491,9.888,2444.5,2441.1,3.2078]
[1750496318492,3.2078,2443.0,2441.1,3.2078]
[1750496318688,4.03833004,2444.0,2440.8,4.09655]
[1750496318689,0.08187326,2442.8,2442.4,7.7285298]
[1750496318992,0.08187326,2442.8,2442.7,8.5472098]
[1750496319196,1.3947,2443.7,2442.8,0.81864]
[1750496319599,12.7903037,2442.9,2442.0,1.2081822]
[1750496319792,4.02651,2442.6,2441.8,0.81896]
[1750496320096,3.2078,2442.1,2441.7,2.23209]
[1750496320398,7.546,2442.0,2441.9,0.81895]
[1750496320593,9.6025,2442.5,2441.8,3.2078]
[1750496320787,9.6025,2442.5,2442.1,3.2078]
[1750496320788,7.847,2442.4,2442.1,3.2078]
[1750496320990,3.12576249,2445.5,2442.1,3.2078]
[1750496321295,3.2078,2443.4,2442.7,3.2078]
[1750496321489,2.1774,2443.3,2442.7,3.2078]
[1750496321790,5.13217321,2443.0,2442.4,3.2078]
[1750496321992,1.3589,2442.9,2442.4,3.2078]
[1750496322190,1.3589,2442.9,2442.1,3.2078]
[1750496322494,5.13217321,2442.6,2442.0,3.2078]
[1750496322696,10.7879,2442.5,2442.0,3.2078]
[1750496322885,15.92007321,2442.5,2442.0,3.2078]
[1750496323085,10.7879,2442.5,2442.0,3.2078]
[1750496323493,9.429,2442.8,2442.4,3.2078]
[1750496323891,15.24765,2442.8,2442.4,3.2078]
[1750496324084,14.429,2442.8,2442.1,0.81886]
[1750496324287,3.2078,2442.1,2441.0,6.4156]
[1750496324496,3.2078,2441.6,2441.1,0.54866326]
[1750496324798,3.2078,2441.6,2441.2,0.54866326]
[1750496324997,3.2078,2441.4,2441.3,1.36779326]
[1750496325198,3.2078,2441.4,2441.3,0.63058682]
[1750496325786,3.2078,2441.4,2441.3,1.44973682]
[1750496326002,3.2078,2441.4,2441.3,0.63058682]
[1750496326187,3.2078,2441.4,2441.3,1.44973682]
[1750496326698,3.2078,2441.4,2441.3,1.36876495]
[1750496327899,2.36401,2441.4,2441.3,7.23475]
[1750496328093,12.9768,2442.0,2441.8,0.81898]
[1750496328293,3.2078,2442.8,2441.7,8.33997321]
[1750496328598,3.2078,2442.1,2441.7,3.2078]
[1750496328897,3.2078,2442.1,2442.0,0.81891]
[1750496329798,8.33997321,2442.1,2441.3,0.06847599]
[1750496329994,5.13217321,2442.1,2442.0,0.81891]
[1750496330198,8.33997321,2442.1,2441.9,0.81893]
[1750496330396,8.33997321,2442.1,2442.0,0.81891]
[1750496330599,8.33997321,2442.1,2441.3,6.48407599]
[1750496330796,3.2078,2441.7,2441.6,0.81905]
[1750496331699,5.13217321,2442.1,2442.0,0.81891]
[1750496331997,8.33997321,2442.1,2442.0,0.81891]
[1750496332195,3.2078,2443.0,2442.0,8.2078]
[1750496332395,3.2078,2442.6,2442.5,0.81875]
[1750496332798,8.2078,2442.6,2442.5,0.81875]
[1750496333204,3.2078,2442.6,2442.5,0.81875]
[1750496333400,9.767,2442.8,2442.7,0.81868]
[1750496334494,14.767,2442.8,2442.7,0.81868]
[1750496334693,5.0,2442.8,2442.3,3.2078]
[1750496334901,3.2078,2443.0,2442.3,3.2078]
[1750496335099,9.765,2442.9,2442.3,3.2078]
[1750496335304,9.765,2442.9,2442.8,0.81864]
[1750496335508,3.2078,2443.0,2442.9,0.81861]
[1750496335704,12.9728,2443.0,2442.8,0.81862]
[1750496336001,12.9728,2443.0,2442.4,2.04695]
[1750496336190,12.9728,2443.0,2442.8,0.81863]
[1750496336394,12.9728,2443.0,2442.8,0.81862]
[1750496336600,18.79139,2443.0,2442.3,3.2078]
[1750496336802,12.9728,2443.0,2442.4,0.81878]
[1750496337100,12.9728,2443.0,2442.9,0.81861]
[1750496337294,9.765,2443.0,2442.4,0.81878]
[1750496337497,3.2078,2444.0,2442.9,3.2078]
[1750496337791,36.78037321,2444.2,2444.0,0.81823]
[1750496338105,44.1218,2444.1,2442.8,3.2078]
[1750496338296,0.81849,2443.3,2442.5,5.25462]
[1750496338497,0.81852,2443.2,2442.5,3.2078]
[1750496338801,0.81855,2443.1,2442.8,0.81863]
[1750496339002,0.6598,2443.2,2442.5,6.4156]
[1750496339202,10.7578,2443.2,2442.5,6.4156]
[1750496339403,10.7578,2443.2,2443.1,0.81854]
[1750496340303,0.6598,2443.2,2443.1,0.81854]
[1750496340504,10.7568,2443.2,2442.8,3.2078]
[1750496340706,10.7568,2443.2,2443.1,0.81854]
[1750496341003,3.2078,2444.1,2443.2,2.04628]
[1750496341203,3.2078,2443.8,2443.2,3.2078]
[1750496341400,3.2078,2443.4,2442.8,3.2078]
[1750496341606,0.81849,2443.3,2443.1,0.81853]
[1750496341799,0.81849,2443.3,2442.8,3.2078]
[1750496341800,3.2078,2443.4,2442.8,6.4156]
[1750496342005,10.097,2443.4,2443.3,0.81848]
[1750496342199,50.3858,2443.9,2443.3,3.2078]
[1750496342405,0.81839,2443.6,2443.4,0.81842]
[1750496342606,0.81839,2443.6,2443.3,3.2078]
[1750496342808,60.4828,2443.9,2443.4,0.81843]
[1750496343011,62.52855,2443.9,2443.2,0.81849]
[1750496343310,62.52855,2443.9,2443.1,3.2078]
[1750496343311,3.2078,2443.7,2443.1,6.4156]
[1750496343504,3.2078,2443.8,2443.1,6.4156]
[1750496343705,57.273,2443.9,2443.1,9.85751]
[1750496343903,47.178,2443.9,2443.4,3.2078]
[1750496344101,2.04454,2445.3,2444.4,0.81811]
[1750496344299,2.04454,2445.3,2443.5,10.095]
[1750496344300,0.8181,2444.5,2444.0,3.2078]
[1750496344506,3.2078,2444.7,2444.3,0.81813]
[1750496344916,0.81809,2444.5,2444.3,0.81813]
[1750496345102,10.095,2444.6,2444.3,0.81813]
[1750496345300,3.2078,2444.4,2443.6,3.2078]
[1750496345506,3.2078,2445.3,2444.3,8.33997321]
[1750496345810,3.2078,2445.3,2444.4,6.46334982]
[1750496346011,3.2078,2444.9,2444.4,3.2078]
[1750496346209,3.2078,2444.9,2444.6,0.81804]
[1750496346507,13.2998,2444.9,2444.2,4.5976]
[1750496346706,8.33997321,2444.6,2443.9,4.02606]
[1750496346907,1.4151,2444.5,2443.9,6.4156]
[1750496347104,10.092,2444.5,2443.9,6.4156]
[1750496347303,10.092,2444.5,2444.0,2.20803]
[1750496347509,0.81815,2444.3,2443.9,7.23385]
[1750496347704,2.23323,2444.4,2444.0,0.81824]
[1750496348213,2.23323,2444.4,2444.0,4.02602]
[1750496348214,12.32522,2444.4,2444.0,4.02602]
[1750496348507,0.81815,2444.3,2444.0,3.2078]
[1750496348711,0.81816,2444.3,2444.0,3.2078]
[1750496348915,12.32522,2444.4,2444.0,3.2078]
[1750496349102,11.5071,2444.4,2444.0,3.2078]
[1750496349303,0.81819,2444.2,2444.0,3.2078]
[1750496349604,11.5071,2444.4,2444.0,3.2078]
[1750496349805,0.8182,2444.2,2444.0,3.2078]
[1750496350306,11.5071,2444.4,2444.0,3.2078]
[1750496350307,0.81816,2444.3,2444.0,3.2078]
[1750496350518,11.5061,2444.4,2444.0,3.2078]
[1750496350709,0.81816,2444.3,2444.0,3.2078]
[1750496350905,0.81816,2444.3,2444.0,4.02604]
[1750496351116,11.5061,2444.4,2444.0,3.2078]
[1750496351303,0.81821,2444.1,2444.0,3.2078]
[1750496353312,0.81824,2444.0,2443.9,3.2078]
[1750496353508,0.81823,2444.1,2443.9,7.23387]
[1750496353903,0.81819,2444.2,2443.9,7.23387]
[1750496354104,11.5061,2444.4,2444.0,0.81823]
[1750496354303,10.90817,2444.3,2444.0,0.81822]
[1750496354507,10.90816,2444.3,2444.0,3.2078]
[1750496354704,10.09,2444.3,2444.1,0.8182]
[1750496354905,10.09,2444.6,2444.2,3.2078]
[1750496355314,4.6062,2444.5,2444.0,0.81824]
[1750496355506,4.6062,2444.5,2444.0,4.02604]
[1750496355815,0.81821,2444.1,2444.0,3.2078]
[1750496356107,6.65144,2444.5,2444.0,3.2078]
[1750496356108,0.8182,2444.2,2444.0,4.02603]
[1750496356314,0.81821,2444.1,2443.9,4.02606]
[1750496356514,1.3984,2444.2,2443.9,6.4156]
[1750496356813,0.81823,2444.1,2443.9,7.23385]
[1750496357203,2.2166,2444.2,2444.0,0.81824]
[1750496357403,1.3984,2444.2,2443.9,3.2078]
[1750496357611,10.90817,2444.3,2444.1,0.8182]
[1750496357909,10.09,2444.3,2444.2,0.81818]
[1750496358309,10.90712,2444.4,2444.2,0.81818]
[1750496358609,0.81812,2444.4,2444.2,0.81818]
[1750496358812,0.81812,2444.4,2444.3,0.81814]
[1750496359018,14.6569,2444.5,2444.2,0.81816]
[1750496359211,0.81813,2444.4,2444.0,1.3072]